fUSD/lending_fUSD_20250521
["ID","MTS","AMOUNT","RATE_DAILY","PERIOD"]
[361810374,1747823469440,-420.0,0.0003315,5]
[361810375,1747823469450,-420.0,0.0003315,5]
[361810376,1747823469460,-437.02,0.0003315,5]
[361810377,1747823469470,-501.19,0.0003315,5]
[361810378,1747823469480,-153.6,0.0003315,5]
[361810379,1747823469490,-420.0,0.0003315,5]
[361810380,1747823469499,-420.0,0.0003315,5]
[361810381,1747823469510,-3829.73,0.0003315,5]
[361810382,1747823469521,-1171.35,0.0003315,5]
[361810383,1747823469532,-1195.86,0.0003315,5]
[361810384,1747823469543,-1602.68,0.0003315,5]
[361810385,1747823469553,-1595.56,0.0003315,5]
[361810386,1747823469563,-420.0,0.0003315,5]
[361810387,1747823469572,-420.0,0.0003315,5]
[361810388,1747823469582,-420.0,0.0003315,5]
[361810389,1747823469592,-1403.63,0.0003315,5]
[361810390,1747823469601,-420.0,0.0003315,5]
[361810391,1747823469611,-1620.22,0.0003315,5]
[361810392,1747823469621,-2127.07,0.0003315,5]
[361810393,1747823469631,-1651.18,0.0003315,5]
[361810394,1747823469640,-975.42,0.0003315,5]
[361810395,1747823469650,-420.0,0.0003315,5]
[361810396,1747823469660,-663.27,0.0003315,5]
[361810397,1747823469671,-4718.07,0.0003315,5]
[361810398,1747823469680,-560.95,0.0003315,5]
[361810399,1747823469690,-701.41,0.0003315,5]
[361810400,1747823469702,-151.99389031,0.0003315,5]
[361810401,1747823469711,-950.44,0.0003315,5]
[361810402,1747823469722,-420.0,0.0003315,5]
[361810403,1747823469731,-304.45572575,0.0003315,5]
[361810404,1747823469741,-708.42,0.0003315,5]
[361810405,1747823469751,-3358.3,0.0003315,5]
[361810406,1747823469762,-420.0,0.0003315,5]
[361810407,1747823469772,-3071.77,0.0003315,5]
[361810408,1747823469782,-1131.94,0.0003315,5]
[361810409,1747823469792,-420.0,0.0003315,5]
[361810410,1747823469803,-1890.69,0.0003315,5]
[361810411,1747823469813,-2588.8,0.0003315,5]
[361810412,1747823469823,-420.0,0.0003315,5]
[361810413,1747823469833,-1081.97,0.0003315,5]
[361810414,1747823469844,-403.75039041,0.0003315,5]
[361810415,1747823469854,-447.09,0.0003315,5]
[361810416,1747823469865,-420.0,0.0003315,5]
[361810417,1747823469876,-1061.79,0.0003315,5]
[361810418,1747823469886,-3165.26,0.0003315,5]
[361810419,1747823469897,-1578.73,0.0003315,5]
[361810420,1747823469907,-420.0,0.0003315,5]
[361810421,1747823469917,-420.0,0.0003315,5]
[361810422,1747823469927,-801.31,0.0003315,5]
[361810423,1747823469937,-437.54,0.0003315,5]
[361810424,1747823469947,-164.58640745,0.0003315,5]
[361810425,1747823469957,-420.0,0.0003315,5]
[361810426,1747823469967,-420.0,0.0003315,5]
[361810427,1747823469977,-1117.87,0.0003315,5]
[361810428,1747823469988,-590.41,0.0003315,5]
[361810429,1747823469999,-646.24,0.0003315,5]
[361810430,1747823470009,-469.33,0.0003315,5]
[361810431,1747823470019,-420.0,0.0003315,5]
[361810432,1747823470032,-1582.05,0.0003315,5]
[361810433,1747823470042,-364.79517681,0.0003315,5]
[361810434,1747823470052,-420.0,0.0003315,5]
[361810435,1747823470063,-944.65,0.0003315,5]
[361810436,1747823470072,-420.0,0.0003315,5]
[361810437,1747823470083,-420.0,0.0003315,5]
[361810438,1747823470092,-1388.27,0.0003315,5]
[361810439,1747823470102,-420.0,0.0003315,5]
[361810440,1747823470112,-817.62,0.0003315,5]
[361810441,1747823470123,-420.0,0.0003315,5]
[361810442,1747823470133,-420.0,0.0003315,5]
[361810443,1747823470144,-420.0,0.0003315,5]
[361810444,1747823470519,-1313.42,0.0003315,5]
[361810445,1747823470557,-2712.821305,0.0003315,5]
[361810446,1747823470567,-2499.18,0.0003315,5]
[361810447,1747823470577,-420.0,0.0003315,5]
[361810448,1747823470587,-420.0,0.0003315,5]
[361810449,1747823470597,-591.99,0.0003315,5]
[361810450,1747823470607,-420.0,0.0003315,5]
[361810451,1747823470616,-420.0,0.0003315,5]
[361810452,1747823470626,-2676.06,0.0003315,5]
[361810453,1747823470636,-568.59311033,0.0003315,5]
[361810454,1747823470646,-420.0,0.0003315,5]
[361810455,1747823470655,-420.0,0.0003315,5]
[361810456,1747823470665,-1630.17,0.0003315,5]
[361810457,1747823470675,-2046.62,0.0003315,5]
[361810458,1747823470684,-707.44,0.0003315,5]
[361810459,1747823470695,-420.0,0.0003315,5]
[361810460,1747823470705,-420.0,0.0003315,5]
[361810461,1747823470715,-420.0,0.0003315,5]
[361810462,1747823470724,-524.92,0.0003315,5]
[361810463,1747823470734,-844.05,0.0003315,5]
[361810464,1747823470743,-603.94,0.0003315,5]
[361810465,1747823470753,-2122.24,0.0003315,5]
[361810466,1747823470763,-420.0,0.0003315,5]
[361810467,1747823470772,-5021.23,0.0003315,5]
[361810468,1747823470782,-1529.49,0.0003315,5]
[361810469,1747823470792,-1386.81,0.0003315,5]
[361810470,1747823470804,-1250.7,0.0003315,5]
[361810471,1747823470814,-420.0,0.0003315,5]
[361810472,1747823470824,-1682.48,0.0003315,5]
[361810473,1747823470834,-730.49,0.0003315,5]
[361810474,1747823470844,-515.91127713,0.0003315,5]
[361810475,1747823470855,-420.0,0.0003315,5]
[361810476,1747823470865,-447.9,0.0003315,5]
[361810477,1747823470874,-420.0,0.0003315,5]
[361810478,1747823470885,-1324.88,0.0003315,5]
[361810479,1747823470895,-2229.66,0.0003315,5]
[361810480,1747823470906,-472.1,0.0003315,5]
[361810481,1747823470915,-420.0,0.0003315,5]
[361810482,1747823470927,-434.93,0.0003315,5]
[361810483,1747823470938,-420.0,0.0003315,5]
[361810484,1747823470948,-1282.33,0.0003315,5]
[361810485,1747823470959,-420.0,0.0003315,5]
[361810486,1747823470969,-2643.47,0.0003315,5]
[361810487,1747823470979,-444.34,0.0003315,5]
[361810488,1747823470988,-420.0,0.0003315,5]
[361810489,1747823470998,-420.0,0.0003315,5]
[361810490,1747823471007,-1343.09,0.0003315,5]
[361810491,1747823471018,-600.65,0.0003315,5]
[361810492,1747823471028,-1076.93,0.0003315,5]
[361810493,1747823471038,-420.0,0.0003315,5]
[361810494,1747823471048,-1416.84,0.0003315,5]
[361810495,1747823471057,-1332.5,0.0003315,5]
[361810496,1747823471067,-1392.97,0.0003315,5]
[361810497,1747823471076,-682.19,0.0003315,5]
[361810498,1747823471086,-420.0,0.0003315,5]
[361810499,1747823471095,-438.34,0.0003315,5]
[361810500,1747823471105,-420.0,0.0003315,5]
[361810501,1747823471115,-791.4,0.0003315,5]
[361810502,1747823471124,-403.89418704,0.0003315,5]
[361810503,1747823471134,-1000.0,0.0003315,30]
[361810504,1747823471145,-632.83,0.0003315,5]
[361810505,1747823471156,-420.0,0.0003315,5]
[361810506,1747823471167,-420.0,0.0003315,5]
[361810507,1747823471176,-713.78,0.0003315,5]
[361810508,1747823471186,-420.0,0.0003315,5]
[361810509,1747823471195,-2568.63,0.0003315,5]
[361810510,1747823471205,-420.0,0.0003315,5]
[361810511,1747823471214,-420.0,0.0003315,5]
[361810512,1747823471224,-1222.57,0.0003315,5]
[361810513,1747823471233,-420.0,0.0003315,5]
[361810514,1747823471243,-420.0,0.0003315,5]
[361810515,1747823471252,-3400.95,0.0003315,5]
[361810516,1747823471262,-1185.11,0.0003315,5]
[361810517,1747823471272,-420.0,0.0003315,5]
[361810518,1747823471281,-420.0,0.0003315,5]
[361810519,1747823471291,-420.0,0.0003315,5]
[361810520,1747823471300,-618.99,0.0003315,5]
[361810521,1747823471311,-559.3,0.0003315,5]
[361810522,1747823471321,-2592.87,0.0003315,5]
[361810523,1747823471333,-420.0,0.0003315,5]
[361810524,1747823471343,-729.48,0.0003315,5]
[361810525,1747823471358,-1036.77,0.0003315,5]
[361810526,1747823471370,-420.0,0.0003315,5]
[361810527,1747823471379,-912.69,0.0003315,5]
[361810528,1747823471389,-2077.17,0.0003315,5]
[361810529,1747823471400,-474.23,0.0003315,5]
[361810530,1747823471410,-633.02,0.0003315,5]
[361810531,1747823471420,-2143.32,0.0003315,5]
[361810532,1747823471430,-420.0,0.0003315,5]
[361810533,1747823471440,-2433.64,0.0003315,5]
[361810534,1747823471450,-420.0,0.0003315,5]
[361810535,1747823471461,-2156.45,0.0003315,5]
[361810536,1747823471473,-680.33,0.0003315,5]
[361810537,1747823471484,-1587.63,0.0003315,5]
[361810538,1747823471494,-420.0,0.0003315,5]
[361810539,1747823471503,-3338.68,0.0003315,5]
[361810540,1747823471513,-420.0,0.0003315,5]
[361810541,1747823471523,-420.0,0.0003315,5]
[361810542,1747823471533,-2132.67,0.0003315,5]
[361810543,1747823471543,-539.66,0.0003315,5]
[361810544,1747823471552,-1108.21,0.0003315,5]
[361810545,1747823471562,-420.0,0.0003315,5]
[361810546,1747823471571,-1448.56,0.0003315,5]
[361810547,1747823471581,-1231.09,0.0003315,5]
[361810548,1747823471590,-1449.81,0.0003315,5]
[361810549,1747823471600,-420.0,0.0003315,5]
[361810550,1747823471609,-2507.82,0.0003315,5]
[361810551,1747823471621,-461.55,0.0003315,5]
[361810552,1747823471630,-420.0,0.0003315,5]
[361810553,1747823471640,-2269.59,0.0003315,5]
[361810554,1747823471650,-3289.43,0.0003315,5]
[361810555,1747823471661,-1017.25,0.0003315,5]
[361810556,1747823471670,-420.0,0.0003315,5]
[361810557,1747823471680,-273.312384,0.0003315,5]
[361810558,1747823471690,-1196.46,0.0003315,5]
[361810559,1747823471700,-420.0,0.0003315,5]
[361810560,1747823471710,-420.0,0.0003315,5]
[361810561,1747823471720,-1902.38,0.0003315,5]
[361810562,1747823471730,-4528.11,0.0003315,5]
[361810563,1747823471740,-420.0,0.0003315,5]
[361810564,1747823471749,-437.58,0.0003315,5]
[361810565,1747823471760,-2709.01,0.0003315,5]
[361810566,1747823471770,-934.68,0.0003315,5]
[361810567,1747823471780,-3000.52,0.0003315,5]
[361810568,1747823471790,-644.31,0.0003315,5]
[361810569,1747823471800,-2558.61,0.0003315,5]
[361810570,1747823471811,-420.0,0.0003315,5]
[361810571,1747823471820,-919.21,0.0003315,5]
[361810572,1747823471830,-420.0,0.0003315,5]
[361810573,1747823471840,-420.0,0.0003315,5]
[361810574,1747823471851,-3800.75,0.0003315,5]
[361810575,1747823471862,-1016.83,0.0003315,5]
[361810576,1747823471872,-420.0,0.0003315,5]
[361810577,1747823471882,-420.0,0.0003315,5]
[361810578,1747823471892,-420.0,0.0003315,5]
[361810579,1747823471902,-1283.86,0.0003315,5]
[361810580,1747823471911,-5012.54,0.0003315,5]
[361810581,1747823471922,-420.0,0.0003315,5]
[361810582,1747823471931,-4257.36,0.0003315,5]
[361810583,1747823471942,-420.0,0.0003315,5]
[361810584,1747823471952,-420.0,0.0003315,5]
[361810585,1747823471963,-420.0,0.0003315,5]
[361810586,1747823471973,-2661.46,0.0003315,5]
[361810587,1747823471983,-420.0,0.0003315,5]
[361810588,1747823471992,-420.0,0.0003315,5]
[361810589,1747823472002,-420.0,0.0003315,5]
[361810590,1747823472012,-7175.57,0.0003315,5]
[361810591,1747823472024,-420.0,0.0003315,5]
[361810592,1747823472034,-1626.84,0.0003315,5]
[361810593,1747823472043,-420.0,0.0003315,5]
[361810594,1747823472054,-420.0,0.0003315,5]
[361810595,1747823472063,-7478.95,0.0003315,5]
[361810596,1747823472072,-1050.66,0.0003315,5]
[361810597,1747823472082,-1297.42,0.0003315,5]
[361810598,1747823472093,-420.0,0.0003315,5]
[361810599,1747823472103,-3186.22,0.0003315,5]
[361810600,1747823472113,-459.54,0.0003315,5]
[361810601,1747823472123,-1603.59,0.0003315,5]
[361810602,1747823472134,-420.0,0.0003315,5]
[361810603,1747823472145,-1706.72,0.0003315,5]
[361810604,1747823472154,-1118.07,0.0003315,5]
[361810605,1747823472167,-1819.17,0.0003315,5]
[361810606,1747823472177,-3456.53,0.0003315,5]
[361810607,1747823472188,-420.0,0.0003315,5]
[361810608,1747823472198,-477.62,0.0003315,5]
[361810609,1747823472207,-500.47,0.0003315,5]
[361810610,1747823472217,-553.49130023,0.0003315,5]
[361810611,1747823472228,-420.0,0.0003315,5]
[361810612,1747823472238,-1245.18,0.0003315,5]
[361810613,1747823472247,-864.67,0.0003315,5]
[361810614,1747823472257,-485.82,0.0003315,5]
[361810615,1747823472267,-1044.28,0.0003315,5]
[361810616,1747823472277,-2279.99,0.0003315,5]
[361810617,1747823472287,-483.53,0.0003315,5]
[361810618,1747823472297,-420.0,0.0003315,5]
[361810619,1747823472306,-420.0,0.0003315,5]
[361810620,1747823472316,-420.0,0.0003315,5]
[361810621,1747823472325,-1093.42,0.0003315,5]
[361810622,1747823472335,-773.61,0.0003315,5]
[361810623,1747823472344,-420.0,0.0003315,5]
[361810624,1747823472357,-1587.6,0.0003315,5]
[361810625,1747823472367,-2000.0,0.0003315,5]
[361810626,1747823472376,-478.74,0.0003315,5]
[361810627,1747823472387,-3023.35,0.0003315,5]
[361810628,1747823472399,-2681.61,0.0003315,5]
[361810629,1747823472408,-420.0,0.0003315,5]
[361810630,1747823472418,-3921.51,0.0003315,5]
[361810631,1747823472427,-774.74,0.0003315,5]
[361810632,1747823472438,-420.0,0.0003315,5]
[361810633,1747823472450,-420.0,0.0003315,5]
[361810634,1747823472460,-11832.32,0.0003315,5]
[361810635,1747823472470,-1140.49,0.0003315,5]
[361810636,1747823472480,-716.85,0.0003315,5]
[361810637,1747823472490,-1451.14,0.0003315,5]
[361810638,1747823472500,-4169.63,0.0003315,5]
[361810639,1747823472510,-614.3,0.0003315,5]
[361810640,1747823472520,-1980.16,0.0003315,5]
[361810641,1747823472531,-1064.83,0.0003315,5]
[361810642,1747823472541,-1031.8,0.0003315,5]
[361810643,1747823472551,-2328.19,0.0003315,5]
[361810644,1747823472560,-420.0,0.0003315,5]
[361810645,1747823472570,-595.22,0.0003315,5]
[361810646,1747823472580,-2178.09,0.0003315,5]
[361810647,1747823472589,-420.0,0.0003315,5]
[361810648,1747823472599,-12779.36,0.0003315,5]
[361810649,1747823472608,-3199.69,0.0003315,5]
[361810650,1747823472618,-420.0,0.0003315,5]
[361810651,1747823472627,-464.93,0.0003315,5]
[361810652,1747823472636,-1385.93,0.0003315,5]
[361810653,1747823472646,-3624.48,0.0003315,5]
[361810654,1747823472656,-1592.89,0.0003315,5]
[361810655,1747823472666,-420.0,0.0003315,5]
[361810656,1747823472676,-420.0,0.0003315,5]
[361810657,1747823472686,-3239.25,0.0003315,5]
[361810658,1747823472695,-420.0,0.0003315,5]
[361810659,1747823472706,-4626.37,0.0003315,5]
[361810660,1747823472716,-420.0,0.0003315,5]
[361810661,1747823472725,-1377.38,0.0003315,5]
[361810662,1747823472735,-2100.46,0.0003315,5]
[361810663,1747823472745,-613.45,0.0003315,5]
[361810664,1747823472755,-232873.01,0.0003315,5]
[361810665,1747823472765,-420.0,0.0003315,5]
[361810666,1747823472775,-420.0,0.0003315,5]
[361810667,1747823472785,-814.19,0.0003315,5]
[361810668,1747823472795,-2870.6,0.0003315,5]
[361810669,1747823472805,-420.0,0.0003315,5]
[361810670,1747823472815,-420.0,0.0003315,5]
[361810671,1747823472825,-544.44,0.0003315,5]
[361810672,1747823472836,-2582.79,0.0003315,5]
[361810673,1747823472845,-1455.85,0.0003315,5]
[361810674,1747823472855,-1140.2,0.0003315,5]
[361810675,1747823472864,-3817.8,0.0003315,5]
[361810676,1747823472874,-1001.8,0.0003315,5]
[361810677,1747823472884,-24741.12,0.0003315,5]
[361810678,1747823472894,-746.18,0.0003315,5]
[361810679,1747823472904,-1332.61,0.0003315,5]
[361810680,1747823472914,-847.4,0.0003315,5]
[361810681,1747823472924,-6653.58,0.0003315,5]
[361810682,1747823472934,-2208.36,0.0003315,5]
[361810683,1747823472943,-420.0,0.0003315,5]
[361810684,1747823472953,-3466.92,0.0003315,5]
[361810685,1747823473086,-2780.98,0.0003315,5]
[361810686,1747823473096,-756.27,0.0003315,5]
[361810687,1747823473105,-4377.12,0.0003315,5]
[361810688,1747823473114,-3727.2,0.0003315,5]
[361810689,1747823473123,-43430.9,0.0003315,5]
[361810690,1747823473133,-662.42,0.0003315,5]
[361810691,1747823473144,-420.0,0.0003315,5]
[361810692,1747823473155,-1355.36,0.0003315,5]
[361810693,1747823473164,-1646.2,0.0003315,5]
[361810694,1747823473174,-420.0,0.0003315,5]
[361810695,1747823473183,-692.1,0.0003315,5]
[361810696,1747823473193,-420.0,0.0003315,5]
[361810697,1747823473202,-3823.68,0.0003315,5]
[361810698,1747823473212,-1950.11,0.0003315,5]
[361810699,1747823473222,-420.0,0.0003315,5]
[361810700,1747823473232,-1929.18,0.0003315,5]
[361810701,1747823473242,-1375.19,0.0003315,5]
[361810702,1747823473251,-694.13,0.0003315,5]
[361810703,1747823473260,-27430.46,0.0003315,5]
[361810704,1747823473269,-420.0,0.0003315,5]
[361810705,1747823473279,-2620.97,0.0003315,5]
[361810706,1747823473288,-1035.87,0.0003315,5]
[361810707,1747823473297,-3873.45,0.0003315,5]
[361810708,1747823473309,-8392.23,0.0003315,5]
[361810709,1747823473319,-420.0,0.0003315,5]
[361810710,1747823473330,-420.0,0.0003315,5]
[361810711,1747823473339,-831.34,0.0003315,5]
[361810712,1747823473349,-683.8,0.0003315,5]
[361810713,1747823473363,-420.0,0.0003315,5]
[361810714,1747823473372,-648.18,0.0003315,5]
[361810715,1747823473381,-420.0,0.0003315,5]
[361810716,1747823473390,-420.0,0.0003315,5]
[361810717,1747823473402,-333.94,0.0003315,5]
[361810718,1747823473414,-2236.59,0.0003315,5]
[361810719,1747823473423,-862.9,0.0003315,5]
[361810720,1747823473437,-2431.99,0.0003315,5]
[361810721,1747823473447,-2055.72,0.0003315,5]
[361810722,1747823473458,-30819.65,0.0003315,5]
[361810723,1747823473468,-426.36,0.0003315,5]
[361810724,1747823473477,-420.0,0.0003315,5]
[361810725,1747823473487,-3529.5,0.0003315,5]
[361810726,1747823473496,-420.0,0.0003315,5]
[361810727,1747823473505,-420.0,0.0003315,5]
[361810728,1747823473515,-420.0,0.0003315,5]
[361810729,1747823473524,-507.94,0.0003315,5]
[361810730,1747823473534,-7158.91,0.0003315,5]
[361810731,1747823473543,-1372.96,0.0003315,5]
[361810732,1747823473553,-11263.62,0.0003315,5]
[361810733,1747823473561,-1395.97,0.0003315,5]
[361810734,1747823473572,-10218.82,0.0003315,5]
[361810735,1747823473582,-420.0,0.0003315,5]
[361810736,1747823473591,-11955.57,0.0003315,5]
[361810737,1747823473600,-420.0,0.0003315,5]
[361810738,1747823473609,-903.34,0.0003315,5]
[361810739,1747823473618,-4237.43,0.0003315,5]
[361810740,1747823473627,-1156.02,0.0003315,5]
[361810741,1747823473637,-420.0,0.0003315,5]
[361810742,1747823473647,-1250.1,0.0003315,5]
[361810743,1747823473656,-1940.56,0.0003315,5]
[361810744,1747823473665,-206.39577306,0.0003315,5]
[361810745,1747823473674,-1535.0,0.0003315,5]
[361810746,1747823473684,-420.0,0.0003315,5]
[361810747,1747823473693,-2611.65,0.0003315,5]
[361810748,1747823473702,-2088.87,0.0003315,5]
[361810749,1747823473712,-420.0,0.0003315,5]
[361810750,1747823473721,-604.9,0.0003315,5]
[361810751,1747823473731,-436.47,0.0003315,5]
[361810752,1747823473741,-420.0,0.0003315,5]
[361810753,1747823473750,-420.0,0.0003315,5]
[361810754,1747823473761,-512.59,0.0003315,5]
[361810755,1747823473770,-3994.4,0.0003315,5]
[361810756,1747823473780,-4967.59,0.0003315,5]
[361810757,1747823473789,-420.0,0.0003315,5]
[361810758,1747823473799,-420.0,0.0003315,5]
[361810759,1747823473807,-420.0,0.0003315,5]
[361810760,1747823473819,-997.3,0.0003315,5]
[361810761,1747823473828,-512.41006945,0.0003315,5]
[361810762,1747823473837,-6358.26,0.0003315,5]
[361810763,1747823473847,-2461.55,0.0003315,5]
[361810764,1747823473856,-3960.15,0.0003315,5]
[361810765,1747823473866,-420.0,0.0003315,5]
[361810766,1747823473876,-2650.09,0.0003315,5]
[361810767,1747823473885,-1029.17,0.0003315,5]
[361810768,1747823473896,-655.48,0.0003315,5]
[361810769,1747823473906,-2763.51,0.0003315,5]
[361810770,1747823473915,-3823.46,0.0003315,5]
[361810771,1747823473925,-420.0,0.0003315,5]
[361810772,1747823473934,-420.0,0.0003315,5]
[361810773,1747823473943,-420.0,0.0003315,5]
[361810774,1747823473953,-420.0,0.0003315,5]
[361810775,1747823473962,-2138.94,0.0003315,5]
[361810776,1747823473972,-420.0,0.0003315,5]
[361810777,1747823473982,-420.0,0.0003315,5]
[361810778,1747823473992,-3514.65,0.0003315,5]
[361810779,1747823474003,-578.47,0.0003315,5]
[361810780,1747823474012,-420.0,0.0003315,5]
[361810781,1747823474021,-1778.66,0.0003315,5]
[361810782,1747823474030,-278.53391482,0.0003315,5]
[361810783,1747823474040,-4923.96,0.0003315,5]
[361810784,1747823474049,-7467.95,0.0003315,5]
[361810785,1747823474059,-420.0,0.0003315,5]
[361810786,1747823474068,-420.87,0.0003315,5]
[361810787,1747823474078,-420.0,0.0003315,5]
[361810788,1747823474087,-420.0,0.0003315,5]
[361810789,1747823474096,-1388.95,0.0003315,5]
[361810790,1747823474105,-1642.25,0.0003315,5]
[361810791,1747823474114,-7928.56,0.0003315,5]
[361810792,1747823474123,-15894.82,0.0003315,5]
[361810793,1747823474132,-535.54,0.0003315,5]
[361810794,1747823474141,-3648.84,0.0003315,5]
[361810795,1747823474150,-420.0,0.0003315,5]
[361810796,1747823474159,-18415.06,0.0003315,5]
[361810797,1747823474168,-228.35342986,0.0003315,5]
[361810798,1747823474177,-420.0,0.0003315,5]
[361810799,1747823474187,-2111.71,0.0003315,5]
[361810800,1747823474196,-584.64,0.0003315,5]
[361810801,1747823474205,-2534.37,0.0003315,5]
[361810802,1747823474214,-1096.3,0.0003315,5]
[361810803,1747823474224,-420.0,0.0003315,5]
[361810804,1747823474233,-420.0,0.0003315,5]
[361810805,1747823474250,-420.0,0.0003315,5]
[361810806,1747823474259,-2727.38,0.0003315,5]
[361810807,1747823474268,-481.82,0.0003315,5]
[361810808,1747823474278,-4064.18,0.0003315,5]
[361810809,1747823474287,-2791.01,0.0003315,5]
[361810810,1747823474297,-1605.11,0.0003315,5]
[361810811,1747823474307,-583.63,0.0003315,5]
[361810812,1747823474315,-420.0,0.0003315,5]
[361810813,1747823474325,-420.0,0.0003315,5]
[361810814,1747823474334,-420.0,0.0003315,5]
[361810815,1747823474344,-3277.38,0.0003315,5]
[361810816,1747823474356,-1946.19,0.0003315,5]
[361810817,1747823474365,-420.0,0.0003315,5]
[361810818,1747823474375,-420.0,0.0003315,5]
[361810819,1747823474386,-4162.95,0.0003315,5]
[361810820,1747823474396,-486.64,0.0003315,5]
[361810821,1747823474406,-1793.09,0.0003315,5]
[361810822,1747823474415,-2365.3,0.0003315,5]
[361810823,1747823474425,-5030.39,0.0003315,5]
[361810824,1747823474436,-853.5,0.0003315,5]
[361810825,1747823474446,-420.0,0.0003315,5]
[361810826,1747823474455,-420.0,0.0003315,5]
[361810827,1747823474465,-420.0,0.0003315,5]
[361810828,1747823474474,-1065.78,0.0003315,5]
[361810829,1747823474483,-420.0,0.0003315,5]
[361810830,1747823474493,-5351.26,0.0003315,5]
[361810831,1747823474503,-8618.58,0.0003315,5]
[361810832,1747823474512,-420.0,0.0003315,5]
[361810833,1747823474522,-3564.21,0.0003315,5]
[361810834,1747823474532,-1488.03,0.0003315,5]
[361810835,1747823474541,-4366.01,0.0003315,5]
[361810836,1747823474553,-1284.33,0.0003315,5]
[361810837,1747823474563,-5387.66,0.0003315,5]
[361810838,1747823474573,-420.0,0.0003315,5]
[361810839,1747823474584,-420.0,0.0003315,5]
[361810840,1747823474593,-643.95,0.0003315,5]
[361810841,1747823474603,-11304.41,0.0003315,5]
[361810842,1747823474612,-420.0,0.0003315,5]
[361810843,1747823474621,-441.74,0.0003315,5]
[361810844,1747823474631,-420.0,0.0003315,5]
[361810845,1747823474640,-751.7,0.0003315,5]
[361810846,1747823474650,-873.4,0.0003315,5]
[361810847,1747823474659,-420.0,0.0003315,5]
[361810848,1747823474669,-1096.95,0.0003315,5]
[361810849,1747823474678,-781.82,0.0003315,5]
[361810850,1747823474689,-420.0,0.0003315,5]
[361810851,1747823474700,-871.43,0.0003315,5]
[361810852,1747823474710,-420.0,0.0003315,5]
[361810853,1747823474720,-420.0,0.0003315,5]
[361810854,1747823474730,-5264.38,0.0003315,5]
[361810855,1747823474740,-420.0,0.0003315,5]
[361810856,1747823474750,-778.01,0.0003315,5]
[361810857,1747823474760,-3424.15,0.0003315,5]
[361810858,1747823474769,-6336.25,0.0003315,5]
[361810859,1747823474779,-420.0,0.0003315,5]
[361810860,1747823474788,-575.11,0.0003315,5]
[361810861,1747823474798,-2227.33,0.0003315,5]
[361810862,1747823474807,-469.12,0.0003315,5]
[361810863,1747823474817,-382.87906711,0.0003315,5]
[361810864,1747823474826,-2778.38,0.0003315,5]
[361810865,1747823474834,-2282.35,0.0003315,5]
[361810866,1747823474844,-420.0,0.0003315,5]
[361810867,1747823474853,-420.0,0.0003315,5]
[361810868,1747823474863,-420.0,0.0003315,5]
[361810869,1747823474872,-420.0,0.0003315,5]
[361810870,1747823474882,-2508.06,0.0003315,5]
[361810871,1747823474894,-477.54,0.0003315,5]
[361810872,1747823474904,-420.0,0.0003315,5]
[361810873,1747823474914,-45711.39,0.0003315,5]